{"text_format":"3","workbook":"xlsx","n_sheets":7,"sheets":["Mandag","Tirsdag","Onsdag","torsdag","Fredag","Lørdag","Søndag"],"not_rendered":{"defined_names":21},"read":"whole","date_system":"1900"}

{"sheet":"Mandag","index":0,"n_rows":10,"n_cols":13,"rows_kept":10,"merged":[[0,1,0,4],[1,2,1,4],[2,2,2,4]]}
[null,"Vagtplan"]
[null,"Ugens begyndelsesdato: ","Dato"]
[null,"Afdelingsnavn: ","Navn"]
[]
[null,"MANDAG","7:00","8:00","9:00","10:00","11:00","12:00","13:00","14:00","15:00","Sygefravær?","SAMLET"]
[null,"Navn 1","manager","manager","manager","manager","manager","manager","manager","manager","leder",null,{"$f":"COUNTIF(Mandag[[#This Row],[7:00]:[15:00]],\"*\")","v":9}]
[null,"Navn 2",null,"kassemedarbejder","kassemedarbejder","kassemedarbejder","kassemedarbejder",{"$nulls":5},{"$f":"COUNTIF(Mandag[[#This Row],[7:00]:[15:00]],\"*\")","v":4}]
[null,"Navn 3",null,"reception","reception","reception","reception ","reception","reception","reception",null,null,{"$f":"COUNTIF(Mandag[[#This Row],[7:00]:[15:00]],\"*\")","v":7}]
[null,"Navn 4",null,"reception","reception","reception","reception ","reception","reception","reception",null,null,{"$f":"COUNTIF(Mandag[[#This Row],[7:00]:[15:00]],\"*\")","v":7}]
[null,"Navn 5",{"$nulls":9},"Sygefravær",{"$f":"COUNTIF(Mandag[[#This Row],[7:00]:[15:00]],\"*\")","v":0}]

{"sheet":"Tirsdag","index":1,"n_rows":10,"n_cols":13,"rows_kept":10,"merged":[[0,1,0,4],[1,2,1,4],[2,2,2,4]]}
[null,"Vagtplan"]
[null,"Ugens begyndelsesdato: ",{"$f":"Mandag!C2","v":"Dato"}]
[null,"Afdelingsnavn: ",{"$f":"Mandag!C3","v":"Navn"}]
[]
[null,"TIRSDAG","7:00","8:00","9:00","10:00","11:00","12:00","13:00","14:00","15:00","Sygefravær?","SAMLET"]
[null,"Navn 1","manager","manager","manager","manager","manager","manager","manager","manager","leder",null,{"$f":"COUNTIF(Tirsdag[[#This Row],[7:00]:[15:00]],\"*\")","v":9}]
[null,"Navn 2",null,"kassemedarbejder","kassemedarbejder","kassemedarbejder","kassemedarbejder",{"$nulls":5},{"$f":"COUNTIF(Tirsdag[[#This Row],[7:00]:[15:00]],\"*\")","v":4}]
[null,"Navn 3",null,"reception","reception","reception","reception ","reception","reception","reception",null,null,{"$f":"COUNTIF(Tirsdag[[#This Row],[7:00]:[15:00]],\"*\")","v":7}]
[null,"Navn 4",null,"reception","reception","reception","reception ","reception","reception","reception",null,null,{"$f":"COUNTIF(Tirsdag[[#This Row],[7:00]:[15:00]],\"*\")","v":7}]
[null,"Navn 5",{"$nulls":9},"Sygefravær",{"$f":"COUNTIF(Tirsdag[[#This Row],[7:00]:[15:00]],\"*\")","v":0}]

{"sheet":"Onsdag","index":2,"n_rows":10,"n_cols":13,"rows_kept":10,"merged":[[0,1,0,4],[1,2,1,4],[2,2,2,4]]}
[null,"Vagtplan"]
[null,"Ugens begyndelsesdato: ",{"$f":"Mandag!C2","v":"Dato"}]
[null,"Afdelingsnavn: ",{"$f":"Mandag!C3","v":"Navn"}]
[]
[null,"ONSDAG","7:00","8:00","9:00","10:00","11:00","12:00","13:00","14:00","15:00","Sygefravær?","SAMLET"]
[null,"Navn 1","manager","manager","manager","manager","manager","manager","manager","manager","leder",null,{"$f":"COUNTIF(Onsdag[[#This Row],[7:00]:[15:00]],\"*\")","v":9}]
[null,"Navn 2",null,"kassemedarbejder","kassemedarbejder","kassemedarbejder","kassemedarbejder",{"$nulls":5},{"$f":"COUNTIF(Onsdag[[#This Row],[7:00]:[15:00]],\"*\")","v":4}]
[null,"Navn 3",null,"reception","reception","reception","reception ","reception","reception","reception",null,null,{"$f":"COUNTIF(Onsdag[[#This Row],[7:00]:[15:00]],\"*\")","v":7}]
[null,"Navn 4",null,"reception","reception","reception","reception ","reception","reception","reception",null,null,{"$f":"COUNTIF(Onsdag[[#This Row],[7:00]:[15:00]],\"*\")","v":7}]
[null,"Navn 5",{"$nulls":9},"Sygefravær",{"$f":"COUNTIF(Onsdag[[#This Row],[7:00]:[15:00]],\"*\")","v":0}]

{"sheet":"torsdag","index":3,"n_rows":10,"n_cols":13,"rows_kept":10,"merged":[[0,1,0,4],[1,2,1,4],[2,2,2,4]]}
[null,"Vagtplan"]
[null,"Ugens begyndelsesdato: ",{"$f":"Mandag!C2","v":"Dato"}]
[null,"Afdelingsnavn: ",{"$f":"Mandag!C3","v":"Navn"}]
[]
[null,"TORSDAG","7:00","8:00","9:00","10:00","11:00","12:00","13:00","14:00","15:00","Sygefravær?","SAMLET"]
[null,"Navn 1","manager","manager","manager","manager","manager","manager","manager","manager","leder",null,{"$f":"COUNTIF(Torsdag[[#This Row],[7:00]:[15:00]],\"*\")","v":9}]
[null,"Navn 2",null,"kassemedarbejder","kassemedarbejder","kassemedarbejder","kassemedarbejder",{"$nulls":5},{"$f":"COUNTIF(Torsdag[[#This Row],[7:00]:[15:00]],\"*\")","v":4}]
[null,"Navn 3",null,"reception","reception","reception","reception ","reception","reception","reception",null,null,{"$f":"COUNTIF(Torsdag[[#This Row],[7:00]:[15:00]],\"*\")","v":7}]
[null,"Navn 4",null,"reception","reception","reception","reception ","reception","reception","reception",null,null,{"$f":"COUNTIF(Torsdag[[#This Row],[7:00]:[15:00]],\"*\")","v":7}]
[null,"Navn 5",{"$nulls":9},"Sygefravær",{"$f":"COUNTIF(Torsdag[[#This Row],[7:00]:[15:00]],\"*\")","v":0}]

{"sheet":"Fredag","index":4,"n_rows":10,"n_cols":13,"rows_kept":10,"merged":[[0,1,0,4],[1,2,1,4],[2,2,2,4]]}
[null,"Vagtplan"]
[null,"Ugens begyndelsesdato: ",{"$f":"Mandag!C2","v":"Dato"}]
[null,"Afdelingsnavn: ",{"$f":"Mandag!C3","v":"Navn"}]
[]
[null,"FREDAG","7:00","8:00","9:00","10:00","11:00","12:00","13:00","14:00","15:00","Sygefravær?","SAMLET"]
[null,"Navn 1","manager","manager","manager","manager","manager","manager","manager","manager","leder",null,{"$f":"COUNTIF(Fredag[[#This Row],[7:00]:[15:00]],\"*\")","v":9}]
[null,"Navn 2",null,"kassemedarbejder","kassemedarbejder","kassemedarbejder","kassemedarbejder",{"$nulls":5},{"$f":"COUNTIF(Fredag[[#This Row],[7:00]:[15:00]],\"*\")","v":4}]
[null,"Navn 3",null,"reception","reception","reception","reception ","reception","reception","reception",null,null,{"$f":"COUNTIF(Fredag[[#This Row],[7:00]:[15:00]],\"*\")","v":7}]
[null,"Navn 4",null,"reception","reception","reception","reception ","reception","reception","reception",null,null,{"$f":"COUNTIF(Fredag[[#This Row],[7:00]:[15:00]],\"*\")","v":7}]
[null,"Navn 5",{"$nulls":9},"Sygefravær",{"$f":"COUNTIF(Fredag[[#This Row],[7:00]:[15:00]],\"*\")","v":0}]

{"sheet":"Lørdag","index":5,"n_rows":10,"n_cols":13,"rows_kept":10,"merged":[[0,1,0,4],[1,2,1,4],[2,2,2,4]]}
[null,"Vagtplan"]
[null,"Ugens begyndelsesdato: ",{"$f":"Mandag!C2","v":"Dato"}]
[null,"Afdelingsnavn: ",{"$f":"Mandag!C3","v":"Navn"}]
[]
[null,"LØRDAG","7:00","8:00","9:00","10:00","11:00","12:00","13:00","14:00","15:00","Sygefravær?","SAMLET"]
[null,"Navn 1","manager","manager","manager","manager","manager","manager","manager","manager","leder",null,{"$f":"COUNTIF(Loerdag[[#This Row],[7:00]:[15:00]],\"*\")","v":9}]
[null,"Navn 2",null,"kassemedarbejder","kassemedarbejder","kassemedarbejder","kassemedarbejder",{"$nulls":5},{"$f":"COUNTIF(Loerdag[[#This Row],[7:00]:[15:00]],\"*\")","v":4}]
[null,"Navn 3",null,"reception","reception","reception","reception ","reception","reception","reception",null,null,{"$f":"COUNTIF(Loerdag[[#This Row],[7:00]:[15:00]],\"*\")","v":7}]
[null,"Navn 4",null,"reception","reception","reception","reception ","reception","reception","reception",null,null,{"$f":"COUNTIF(Loerdag[[#This Row],[7:00]:[15:00]],\"*\")","v":7}]
[null,"Navn 5",{"$nulls":9},"Sygefravær",{"$f":"COUNTIF(Loerdag[[#This Row],[7:00]:[15:00]],\"*\")","v":0}]

{"sheet":"Søndag","index":6,"n_rows":10,"n_cols":13,"rows_kept":10,"merged":[[0,1,0,4],[1,2,1,4],[2,2,2,4]]}
[null,"Vagtplan"]
[null,"Ugens begyndelsesdato: ",{"$f":"Mandag!C2","v":"Dato"}]
[null,"Afdelingsnavn: ",{"$f":"Mandag!C3","v":"Navn"}]
[]
[null,"SØNDAG","7:00","8:00","9:00","10:00","11:00","12:00","13:00","14:00","15:00","Sygefravær?","SAMLET"]
[null,"Navn 1","manager","manager","manager","manager","manager","manager","manager","manager","leder",null,{"$f":"COUNTIF(Soendag[[#This Row],[7:00]:[15:00]],\"*\")","v":9}]
[null,"Navn 2",null,"kassemedarbejder","kassemedarbejder","kassemedarbejder","kassemedarbejder",{"$nulls":5},{"$f":"COUNTIF(Soendag[[#This Row],[7:00]:[15:00]],\"*\")","v":4}]
[null,"Navn 3",null,"reception","reception","reception","reception ","reception","reception","reception",null,null,{"$f":"COUNTIF(Soendag[[#This Row],[7:00]:[15:00]],\"*\")","v":7}]
[null,"Navn 4",null,"reception","reception","reception","reception ","reception","reception","reception",null,null,{"$f":"COUNTIF(Soendag[[#This Row],[7:00]:[15:00]],\"*\")","v":7}]
[null,"Navn 5",{"$nulls":9},"Sygefravær",{"$f":"COUNTIF(Soendag[[#This Row],[7:00]:[15:00]],\"*\")","v":0}]